bitfinex/quotes_ETHUSD_20250801
["timestamp","ask_amount","ask_price","bid_price","bid_amount"]
[1754062919813,0.6053,3617.4,3617.3,2.76449285]
[1754062919980,5.3043,3617.4,3617.3,2.76449285]
[1754062920628,5.7492,3617.4,3616.4,2.90350692]
[1754062920804,0.001,3617.8,3616.2,0.20849076]
[1754062920805,0.4669,3617.7,3617.6,2.76421777]
[1754062920986,5.3003,3617.7,3617.2,2.76456083]
[1754062921183,0.1384,3617.5,3617.4,2.76436402]
[1754062921503,0.001,3617.8,3617.7,2.76418719]
[1754062921801,4.8324,3617.8,3617.7,2.76418719]
[1754062922178,5.2993,3617.8,3617.7,2.76418719]
[1754062922381,0.6063,3617.8,3617.7,2.76418719]
[1754062922589,0.001,3617.8,3617.7,3.21358719]
[1754062923091,0.001,3617.8,3617.7,3.35198719]
[1754062923291,0.001,3617.8,3617.7,6.35198719]
[1754062924410,0.001,3618.2,3618.1,5.76388159]
[1754062924830,0.001,3618.2,3618.1,6.21328159]
[1754062925038,0.001,3618.2,3618.1,6.35168159]
[1754062926252,0.4679,3618.2,3618.1,5.76388159]
[1754062926387,0.001,3618.2,3618.1,5.90228159]
[1754062926592,0.001,3618.2,3618.1,12.88647259]
[1754062926788,1e-08,3618.2,3618.1,11.93976559]
[1754062927001,1e-08,3618.2,3618.1,11.70222559]
[1754062927330,1e-08,3618.2,3618.1,10.07307559]
[1754062928741,4.42300001,3619.2,3619.0,2.76315396]
[1754062929121,4.42300001,3619.2,3618.9,2.7632706]
[1754062929423,4.42300001,3619.2,3619.0,2.76318253]
[1754062929628,0.4669,3619.1,3619.0,2.76318646]
[1754062929826,0.4669,3619.1,3618.9,2.76325348]
[1754062930033,0.4669,3619.0,3618.7,2.76342332]
[1754062930409,0.4449,3619.1,3618.8,2.76328968]
[1754062930601,0.4669,3618.9,3618.7,2.76339888]
[1754062930964,0.4669,3618.8,3618.3,2.76369972]
[1754062931270,0.9118,3618.8,3618.4,3.0]
[1754062931459,0.4449,3618.7,3617.6,3.4494]
[1754062931602,5.5698,3618.7,3617.7,2.76418719]
[1754062931802,0.9118,3618.6,3617.6,4.658]
[1754062932039,0.4669,3618.5,3618.1,2.76383445]
[1754062932239,4.658,3618.7,3617.9,3.0]
[1754062932405,0.4669,3618.5,3618.4,2.76365244]
[1754062932605,0.4669,3618.5,3618.3,2.76371066]
[1754062932920,0.4669,3618.5,3617.8,0.4494]
[1754062932921,0.9118,3618.4,3618.0,2.76395229]
[1754062933102,0.9118,3618.3,3617.6,2.76421177]
[1754062933310,2.76388454,3618.1,3617.4,2.76434234]
[1754062933627,5.5638,3618.0,3617.4,2.76438755]
[1754062933865,0.4669,3617.9,3617.1,2.76463377]
[1754062934066,0.4669,3617.9,3616.9,0.20652366]
[1754062934067,0.4669,3617.9,3616.8,2.76487502]
[1754062934262,0.4669,3617.9,3617.6,2.76423531]
[1754062934441,0.4449,3617.8,3617.3,2.76442778]
[1754062934773,0.4669,3617.7,3617.1,3.0]
[1754062934975,0.4669,3617.7,3616.9,3.21415774]
[1754062934976,0.4669,3617.7,3617.3,2.76447919]
[1754062935181,5.0969,3618.0,3617.4,2.76436576]
[1754062935388,0.4669,3617.6,3617.5,2.76434001]
[1754062935593,0.9042,3617.6,3616.7,0.20820423]
[1754062935889,0.4853,3617.5,3616.5,3.0]
[1754062936073,0.4853,3617.5,3616.9,2.76478303]
[1754062936074,4.649,3617.4,3616.9,2.76478303]
[1754062936242,0.4853,3617.3,3617.0,2.76470657]
[1754062936443,4.649,3617.4,3617.1,2.76457045]
[1754062936648,0.4853,3617.2,3617.0,2.76469589]
[1754062936864,0.1384,3617.1,3617.0,2.76469589]
[1754062937147,0.1384,3617.1,3616.9,2.764795]
[1754062937342,5.0813,3617.6,3617.0,2.76472214]
[1754062937570,5.0813,3617.6,3617.0,2.7646723]
[1754062937744,5.0813,3617.6,3616.9,3.0]
[1754062937745,0.1384,3617.1,3616.9,3.0]
[1754062938062,0.4853,3617.0,3616.9,2.76479133]
[1754062938262,0.6237,3617.0,3616.7,0.20709596]
[1754062938464,0.1384,3616.8,3616.5,3.0]
[1754062938780,0.4853,3616.7,3616.5,3.0]
[1754062938971,0.5757,3616.6,3616.5,0.21016804]
[1754062939144,0.5757,3616.6,3616.3,3.0]
[1754062939341,0.4853,3616.5,3616.3,2.76525265]
[1754062939546,0.4853,3616.5,3616.4,5.76518084]
[1754062939760,0.4853,3616.5,3616.4,3.0]
[1754062939942,0.6237,3616.5,3616.4,5.76518084]
[1754062940176,0.1384,3616.5,3616.4,5.76518084]
[1754062940493,2.76457022,3617.2,3616.8,2.7648534]
[1754062940494,0.4853,3617.1,3616.8,2.7648534]
[1754062940697,0.4853,3617.1,3616.8,2.76486275]
[1754062940999,0.1384,3616.9,3616.8,2.76487502]
[1754062941770,0.6237,3616.9,3616.4,3.20531812]
[1754062941983,0.9226,3616.8,3616.6,2.76502437]
[1754062942317,4.635,3617.2,3616.8,2.76487502]
[1754062942513,3.20200347,3617.1,3616.5,2.76509251]
[1754062942717,0.4853,3617.0,3616.6,2.76502118]
[1754062942873,0.1384,3616.6,3616.5,2.76508009]
[1754062943075,0.6237,3616.6,3616.5,2.76508009]
[1754062943271,3.38875651,3616.6,3616.4,0.20531812]
[1754062943468,0.9226,3616.5,3616.4,0.20531812]
[1754062943764,3.68770438,3616.5,3616.4,0.20531812]
[1754062944027,3.68770438,3616.5,3616.4,0.002]
[1754062944610,7.39310438,3616.5,3616.4,0.002]
[1754062944770,2.76548672,3616.0,3615.9,0.002]
[1754062945112,7.53088672,3616.0,3615.9,1e-08]
[1754062945719,7.52988672,3616.0,3615.9,1e-08]
[1754062946292,2.90388672,3616.0,3615.9,1e-08]
[1754062946482,8.33738672,3616.0,3615.9,1e-08]
[1754062946680,8.01418672,3616.0,3615.9,1e-08]
[1754062946898,8.33738672,3616.0,3615.9,1e-08]
[1754062947220,8.88738672,3616.0,3615.9,1e-08]
[1754062947584,3.31579267,3615.6,3615.5,1e-08]
[1754062947898,7.93979267,3615.6,3615.5,1e-08]
[1754062948095,8.74829267,3615.6,3615.5,1e-08]
[1754062948522,8.88669267,3615.6,3615.5,1e-08]
[1754062948688,4.26269267,3615.6,3615.5,1e-08]
[1754062948888,8.88569267,3615.6,3615.5,1e-08]
[1754062950998,9.71705967,3615.6,3615.5,1e-08]
[1754062951435,12.70805967,3615.6,3615.5,1e-08]
[1754062952338,13.60101364,3615.6,3615.5,1e-08]
[1754062952913,8.40814664,3615.6,3615.5,1e-08]
[1754062953113,8.00049267,3615.6,3615.5,1e-08]
[1754062953342,8.87369267,3615.6,3615.5,1e-08]
[1754062953522,2.76687774,3614.2,3613.9,0.4399]
[1754062953865,2.76669554,3614.5,3613.5,3.23278663]
[1754062953866,4.612,3614.1,3613.5,0.4399]
[1754062954410,2.76657993,3614.6,3613.9,2.76703108]
[1754062954642,0.3232,3615.5,3613.7,0.4399]
[1754062954643,5.0963,3614.5,3613.7,0.4399]
[1754062954825,0.1384,3613.8,3613.7,0.4399]
[1754062955154,4.7484,3613.8,3613.7,0.4399]
[1754062955804,4.7474,3613.8,3613.7,3.67254686]
[1754062956141,4.7474,3613.8,3613.7,0.9053]
[1754062956737,4.7434,3613.8,3613.7,0.4399]
[1754062957336,4.7434,3613.8,3613.5,0.21096672]
[1754062957511,0.1384,3613.6,3613.5,2.76739167]
[1754062957717,0.1384,3613.6,3613.4,2.76942284]
[1754062957958,0.1384,3613.6,3613.5,2.76740002]
[1754062958106,0.1384,3613.6,3613.5,3.67270002]
[1754062959072,0.1384,3613.8,3613.6,2.76728519]
[1754062959348,4.601,3614.6,3614.5,2.76663438]
[1754062959510,0.4853,3619.0,3616.5,2.76510438]
[1754062959851,2.76418719,3617.7,3616.5,0.9053]
[1754062960054,2.76443021,3617.4,3616.5,0.4399]
[1754062960265,4.618,3617.3,3616.5,0.64764569]
[1754062960423,4.618,3617.2,3617.1,2.76464571]
[1754062960767,0.001,3617.8,3617.7,2.76418719]
[1754062961117,4.7614,3617.8,3617.7,2.76418719]
[1754062961323,4.7614,3617.8,3617.7,3.41328754]
[1754062961649,4.7614,3617.8,3617.7,3.87868754]
[1754062961844,4.7614,3617.8,3617.7,3.41328754]
[1754062962542,4.7614,3617.8,3617.7,3.87868754]
[1754062962752,4.7614,3617.8,3617.7,3.41328754]
[1754062963159,4.7614,3617.8,3617.7,3.87868754]
[1754062963354,4.7614,3617.8,3617.7,3.41328754]
[1754062963754,4.7614,3617.8,3617.7,0.64910035]
[1754062964137,4.7614,3617.8,3617.7,10.41328754]
[1754062964360,4.7614,3617.8,3617.7,7.64910035]
[1754062964534,4.7614,3617.8,3617.7,7.20920035]
[1754062965833,7.99741078,3617.8,3617.7,7.0]
[1754062966029,5.2333,3617.8,3617.7,7.0]
[1754062966230,0.6113,3617.8,3617.7,7.0]
[1754062966431,5.2133,3617.8,3617.7,7.0]
[1754062966983,5.2133,3617.8,3617.0,0.4562]
[1754062967161,0.4719,3617.7,3616.4,0.4562]
[1754062967338,0.1384,3616.8,3616.4,0.4562]
[1754062967673,0.1384,3616.5,3616.4,5.76518084]
[1754062967872,0.1384,3616.5,3616.3,2.970376]
[1754062968052,4.601,3616.7,3616.4,2.76518084]
[1754062968252,4.601,3616.7,3616.6,2.76502792]
[1754062968453,4.601,3616.7,3616.6,3.22122792]
[1754062968777,4.7394,3616.7,3616.6,0.4562]
[1754062969072,4.7394,3616.7,3616.3,2.97037]
[1754062969260,4.601,3616.7,3616.6,2.76502792]
[1754062969638,4.7394,3616.7,3616.6,3.22122792]
[1754062970040,0.1384,3616.7,3616.6,3.22122792]
[1754062970236,4.7374,3616.7,3616.6,3.22122792]
[1754062971661,4.7374,3616.7,3616.3,0.20892277]
[1754062971866,4.599,3616.7,3616.4,2.76518084]
[1754062972145,4.599,3616.7,3615.9,0.1384]
[1754062972146,5.0709,3616.7,3615.9,0.1384]
[1754062972355,5.0709,3616.7,3616.3,2.76518574]
[1754062972540,0.1384,3616.0,3615.7,3.0]
[1754062972747,0.1384,3616.0,3615.9,5.7655632]
[1754062973469,0.1384,3616.0,3615.9,6.2217632]
[1754062975604,0.6103,3616.0,3615.9,2.7655632]
[1754062975780,0.6103,3616.0,3615.8,2.76562713]
[1754062976112,0.4719,3616.0,3615.9,2.7655632]
[1754062976277,4.599,3616.1,3616.0,2.76548672]
[1754062976715,4.7374,3616.1,3616.0,3.22168672]
[1754062978322,0.1384,3616.1,3616.0,3.22168672]
[1754062978607,0.1384,3616.1,3616.0,3.70728672]
[1754062978811,0.4719,3617.6,3616.0,6.70728672]
[1754062978977,4.598,3617.5,3616.1,0.9418]
[1754062979302,4.598,3617.5,3617.1,2.7646315]
[1754062979613,3.55952961,3617.4,3616.2,0.4562]
[1754062979910,0.4719,3617.7,3616.4,2.76518084]
[1754062980066,0.1384,3616.8,3616.7,2.76495147]
[1754062980274,0.1384,3616.8,3616.7,3.22115147]
[1754062981011,0.1384,3616.8,3616.7,3.70675147]
[1754062981368,0.1384,3616.8,3616.7,3.22115147]
[1754062982093,0.1384,3616.8,3616.7,6.22115147]
[1754062982307,0.1384,3616.8,3616.7,6.70675147]
[1754062982506,0.001,3617.8,3617.7,2.76418719]
[1754062982675,4.599,3617.8,3617.7,2.76418719]
[1754062982885,4.7374,3617.8,3617.7,2.76418719]
[1754062983622,5.2093,3617.8,3616.8,0.4562]
[1754062983924,0.1384,3617.6,3617.5,2.76427547]
[1754062984700,0.4719,3617.7,3617.6,2.7642636]
[1754062984890,0.4719,3617.7,3617.5,2.76431163]
[1754062985083,0.6103,3617.6,3617.5,2.76434001]
[1754062985432,0.6103,3617.6,3616.8,0.4562]
[1754062985591,0.4719,3617.6,3617.3,2.76444557]
[1754062985787,0.4719,3617.5,3616.8,0.4562]
[1754062985993,0.1384,3617.2,3617.1,2.76464571]
[1754062986218,4.597,3617.2,3617.1,2.76464571]
[1754062986418,4.7354,3617.2,3617.1,2.76464571]
[1754062987432,5.2073,3617.2,3617.1,2.76464571]
[1754062987632,5.2073,3617.2,3616.8,2.76487378]
[1754062987792,0.4719,3617.1,3616.8,2.76486204]
[1754062988133,0.1384,3616.9,3616.2,0.4562]
[1754062988333,0.4719,3616.8,3616.7,2.76495081]
[1754062988703,0.4719,3616.8,3615.7,0.34729576]
[1754062988704,2.76579267,3615.6,3615.5,0.002]
[1754062989053,3.4363917,3615.5,3612.2,0.831119]
[1754062989206,3.4363917,3615.5,3611.0,0.002]
[1754062989207,0.55,3615.0,3613.2,0.20903796]
[1754062989407,4.596,3614.9,3613.2,0.20903796]
[1754062989591,4.596,3614.8,3613.4,0.4582]
[1754062989792,0.4719,3614.9,3613.4,0.4582]
[1754062989793,4.596,3614.7,3613.8,2.76714584]
[1754062990048,5.0679,3615.3,3613.9,0.4562]
[1754062990224,0.4719,3615.0,3613.9,0.4562]
[1754062990692,0.4719,3615.0,3613.4,0.002]
[1754062990693,2.7664725,3614.8,3613.4,0.4582]
[1754062990888,4.596,3615.3,3613.5,2.76733099]
[1754062990889,7.83738616,3614.7,3613.5,2.76733099]
[1754062991234,7.83738616,3614.7,3613.4,0.4582]
[1754062991235,5.3941,3614.6,3613.4,0.002]
[1754062991444,2.76713281,3613.9,3613.4,0.002]
[1754062991731,4.598,3613.8,3613.4,0.002]
[1754062992034,5.0699,3613.8,3613.4,0.002]
[1754062992236,4.597,3613.7,3613.6,2.76725348]
[1754062992397,4.597,3613.7,3613.4,0.002]
[1754062992597,4.597,3613.7,3613.4,3.22564167]
[1754062992837,0.4719,3614.3,3613.5,3.22356866]
[1754062992838,4.6,3613.6,3613.5,3.22356866]
[1754062993141,4.599,3613.6,3613.5,3.22360002]
[1754062993716,0.4719,3614.3,3613.8,2.76716599]
[1754062994038,4.597,3613.9,3613.8,2.76716599]
[1754062994286,4.597,3614.5,3613.8,0.9462]
[1754062994585,4.597,3614.5,3614.2,2.76679853]
[1754062994900,6.643,3614.7,3613.4,2.76941811]
[1754062994901,6.643,3614.7,3614.3,3.71297493]
[1754062995184,4.598,3614.9,3614.4,0.9462]
[1754062995409,0.831026,3616.4,3614.5,0.9364]
[1754062995687,0.831026,3616.4,3614.9,3.0]
[1754062995688,7.36325998,3616.3,3614.9,3.0]
[1754062995887,2.76534189,3616.2,3615.4,2.76588704]
[1754062996074,2.7655632,3616.0,3615.1,2.76615874]
[1754062996384,3.22216351,3615.9,3614.9,3.0]
[1754062996586,5.0546,3615.8,3614.4,3.2050226]
[1754062996755,2.76616497,3615.2,3614.4,5.9717158]
[1754062996951,7.36420273,3615.1,3614.4,0.2050226]
[1754062997197,4.598,3615.0,3614.4,0.2050226]
[1754062997488,4.598,3614.9,3614.8,2.76640114]
[1754062997787,4.598,3614.9,3614.8,3.21560114]
[1754062998196,4.598,3614.9,3614.8,0.4492]
[1754062998516,4.598,3614.9,3614.7,2.76644459]
[1754062998795,4.7364,3614.9,3614.4,0.7926226]
[1754062999003,0.1384,3614.6,3614.4,0.2050226]
[1754062999365,0.1384,3614.6,3613.8,0.4492]
[1754062999565,4.598,3614.9,3614.0,3.0]
[1754062999566,0.1384,3614.2,3614.0,3.0]
[1754062999799,0.4566,3614.7,3614.1,2.76694059]
[1754062999998,0.1384,3614.2,3614.0,2.97347889]
[1754063000302,0.1384,3614.2,3613.7,2.76723206]
[1754063000462,0.1384,3614.2,3613.8,2.76714989]
[1754063000877,0.4566,3614.1,3613.4,0.002]
[1754063001075,0.4566,3614.1,3613.5,2.76739011]
[1754063001076,0.1384,3613.8,3613.5,2.76739011]
[1754063001276,0.1384,3613.8,3613.7,2.76724686]
[1754063001477,4.598,3614.1,3613.6,3.9364]
[1754063001662,4.7364,3614.1,3614.0,5.76701715]
[1754063001866,4.7364,3614.1,3614.0,6.21621715]
[1754063002670,4.598,3614.7,3614.6,2.76650824]
[1754063003121,4.598,3614.7,3614.5,2.76661797]
[1754063003122,4.7364,3614.7,3614.5,2.76661797]
[1754063003408,4.7364,3614.7,3614.3,2.76677635]
[1754063003409,5.0546,3614.7,3614.3,2.76672424]
[1754063003579,0.1384,3614.5,3614.4,3.21591093]
[1754063003972,4.598,3615.1,3614.8,2.76636383]
[1754063004270,0.1384,3614.9,3614.8,3.21560478]
[1754063006070,7.16,3617.7,3614.8,3.9992]
[1754063006271,7.04834248,3616.9,3614.9,0.1384]
[1754063006484,0.1384,3614.9,3614.8,2.76640478]
[1754063006782,0.1384,3614.7,3614.6,3.0]
[1754063006985,0.1384,3614.7,3614.6,2.76654974]
[1754063007509,0.595,3614.7,3614.4,2.76869303]
[1754063007707,0.4566,3614.6,3614.4,0.002]
[1754063008009,4.598,3615.3,3614.5,2.76663438]
[1754063008208,0.4566,3615.1,3614.7,2.76645701]
[1754063008420,4.598,3615.0,3614.8,0.4492]
[1754063008586,0.4566,3616.0,3614.9,0.4492]
[1754063008787,0.4576,3615.5,3615.3,2.76600531]
[1754063009162,0.4576,3615.5,3615.2,2.76603343]
[1754063009291,0.4576,3615.5,3614.7,2.76648131]
[1754063009609,0.4576,3615.5,3615.1,2.76612617]
[1754063009813,0.4576,3615.5,3614.5,3.35420257]
[1754063009814,0.001,3615.5,3615.0,2.76624131]
[1754063010008,0.1384,3615.0,3614.5,2.76657139]
[1754063010215,0.1384,3614.8,3614.7,2.76642948]
[1754063010516,0.001,3615.5,3615.4,2.76594567]
[1754063010699,0.1384,3615.2,3615.1,2.7661752]
[1754063011079,4.599,3615.5,3615.4,2.76594567]
[1754063011480,4.7374,3615.5,3615.4,2.76594567]
[1754063014651,4.599,3615.5,3615.4,3.21514567]
[1754063014824,4.599,3615.5,3615.4,3.35354567]
[1754063015213,0.001,3615.5,3615.4,3.35354567]
[1754063015409,4.597,3616.2,3616.1,2.76541024]
[1754063015642,4.597,3616.5,3616.4,2.76518084]
[1754063016047,4.597,3616.5,3616.4,3.21438084]
[1754063016248,0.8139963,3617.1,3616.4,0.4492]
[1754063016450,0.1384,3616.9,3616.8,2.76487502]
[1754063017327,0.1384,3616.9,3616.4,0.5876]
[1754063017522,0.1384,3616.9,3616.4,0.79806649]
[1754063017712,0.1384,3616.9,3616.7,2.76487536]
[1754063017917,0.595,3616.9,3616.4,0.79806649]
[1754063018116,0.595,3616.9,3616.5,2.76510438]
[1754063018344,0.595,3616.9,3616.4,0.79806649]
[1754063018618,0.595,3616.9,3616.8,2.76487502]
[1754063018818,0.595,3616.9,3616.7,2.76494051]
[1754063019448,0.1384,3616.9,3616.4,3.11398344]
[1754063019765,0.4566,3616.8,3616.3,3.0]
[1754063019962,0.4566,3616.8,3615.6,2.76575131]
[1754063019963,2.76535605,3616.2,3615.1,0.4492]
[1754063020115,5.0526,3616.1,3616.0,3.0]
[1754063020321,4.596,3616.1,3615.9,3.0]
[1754063020534,4.596,3616.1,3616.0,5.76548672]
[1754063020987,0.1384,3616.3,3616.1,3.0]
[1754063021464,0.1384,3616.3,3615.6,0.4492]
[1754063021465,0.4566,3616.2,3615.1,0.4492]
[1754063021778,0.1384,3616.0,3615.6,2.76578783]
[1754063021982,4.596,3615.9,3615.5,0.1384]
[1754063022136,4.596,3615.9,3615.5,2.76581354]
[1754063022341,0.4566,3615.8,3615.6,2.76574654]
[1754063022952,4.47824878,3615.9,3615.1,3.2153043]
[1754063023156,0.1384,3615.6,3615.3,2.76601393]
[1754063023445,3.08861892,3616.1,3615.4,0.4492]
[1754063023446,4.596,3615.5,3615.4,0.4492]
[1754063023854,4.596,3615.5,3615.3,2.76597413]
[1754063024051,4.596,3615.5,3615.3,3.0]
[1754063024377,0.595,3615.4,3615.1,2.76616179]
[1754063024576,0.1384,3615.4,3615.3,2.76602218]
[1754063024742,4.596,3615.5,3615.3,3.0]
[1754063024938,4.596,3615.5,3615.2,3.21527366]
[1754063025277,4.596,3615.4,3615.3,3.215212]
[1754063025473,0.1384,3615.8,3615.4,2.76589799]
[1754063025770,4.595,3615.7,3615.4,2.76589799]
[1754063025936,4.595,3615.7,3615.3,0.1384]
[1754063025937,4.595,3615.7,3615.3,2.90439952]
[1754063026136,4.595,3615.7,3615.3,0.1384]
[1754063026337,4.595,3615.7,3615.3,3.5882]
[1754063026769,4.595,3615.7,3615.4,2.76594567]
[1754063026971,0.4997,3615.6,3615.3,0.1384]
[1754063027180,0.4997,3615.5,3615.2,2.76607677]
[1754063027472,0.4997,3615.5,3615.4,3.0]
[1754063028274,0.1384,3615.6,3615.4,2.76593483]
[1754063028483,0.1384,3615.6,3615.3,2.76600241]
[1754063028684,0.1384,3615.6,3615.2,5.76608606]
[1754063028851,0.1384,3615.6,3615.3,2.76602218]
[1754063029058,0.1384,3615.6,3615.2,0.4498]
[1754063029241,0.1384,3615.6,3615.2,3.21583853]
[1754063029777,0.4997,3615.5,3615.1,3.1384]
[1754063029940,0.1384,3615.6,3615.2,2.7660923]
[1754063030142,0.6381,3615.6,3615.4,3.0]
[1754063030342,0.6381,3615.6,3615.3,3.0]
[1754063030769,0.4997,3615.5,3615.3,3.0]
[1754063030978,0.4997,3615.5,3615.0,2.90464671]
[1754063031180,0.5007,3615.5,3615.1,3.0]
[1754063031656,0.5007,3615.5,3615.3,3.0]
[1754063031839,0.5007,3615.5,3615.1,2.7661726]
[1754063032045,0.5007,3615.5,3615.3,2.76600108]
[1754063032244,0.001,3615.5,3615.4,5.76594567]
[1754063032647,0.001,3615.5,3615.4,6.21574567]
[1754063033093,0.001,3615.5,3615.4,5.76594567]
[1754063034556,0.001,3615.5,3615.4,6.21574567]
[1754063035365,0.001,3615.5,3615.4,6.35414567]
[1754063035579,0.001,3615.5,3615.4,7.38974567]
[1754063036661,1e-08,3615.5,3615.4,7.38974567]
[1754063037285,1e-08,3615.5,3615.4,11.98274567]
[1754063039791,1e-08,3615.5,3615.4,6.35414567]
[1754063040661,1e-08,3615.5,3615.4,6.83974567]
[1754063041099,1e-08,3615.5,3615.4,5.90434567]
[1754063042368,1e-08,3615.5,3615.4,7.38974567]
[1754063042972,5.39973795,3616.7,3615.4,3.9354]
[1754063043184,0.4997,3616.6,3616.5,3.0]
[1754063043573,0.4997,3616.6,3616.5,5.76510438]
[1754063043774,0.4997,3616.6,3616.5,3.0]
[1754063044224,5.0907,3616.6,3616.5,5.76510438]
[1754063044677,5.0907,3616.6,3616.5,3.0]
[1754063046673,4.591,3616.6,3616.5,5.76510438]
[1754063046878,4.591,3616.6,3616.5,6.21490438]
[1754063047074,4.591,3616.6,3616.5,5.76510438]
[1754063047913,5.0907,3616.6,3616.5,3.0]
[1754063048115,5.0907,3616.6,3616.5,5.76510438]
[1754063048506,5.0907,3616.6,3616.5,3.0]
[1754063049108,5.0907,3616.6,3616.5,5.76510438]
[1754063049776,5.0907,3616.6,3616.5,3.0]
[1754063049996,5.0907,3616.6,3616.5,5.76510438]
[1754063050202,5.0907,3616.6,3616.5,3.0]
[1754063051006,5.0907,3616.6,3615.4,0.4498]
[1754063051007,5.4139,3616.6,3615.4,0.4498]
[1754063051235,0.4997,3616.5,3615.5,0.02765869]
[1754063051426,0.4997,3616.5,3616.3,2.76521266]
[1754063051608,0.4997,3616.5,3615.6,0.4498]
[1754063051795,0.4997,3616.5,3616.0,2.76547201]
[1754063052200,0.4997,3616.4,3616.2,3.0]
[1754063052436,3.26495117,3616.4,3615.8,3.0]
[1754063052734,7.35605194,3616.6,3615.9,3.0]
[1754063052735,0.4997,3616.3,3615.9,3.0]
[1754063052906,0.1384,3616.0,3615.9,3.0]
[1754063053243,0.1384,3616.0,3615.5,0.1384]
[1754063053244,0.6381,3616.0,3615.5,0.1384]
[1754063053401,0.6381,3616.0,3615.7,3.0]
[1754063053402,0.1384,3616.0,3615.7,3.0]
[1754063053593,0.1384,3616.0,3615.9,3.0]
[1754063053798,0.1384,3616.0,3615.5,0.1384]
[1754063054146,0.1384,3616.0,3615.9,5.7655632]
[1754063054297,4.588,3616.2,3616.0,5.76542271]
[1754063054498,0.001,3616.6,3616.0,5.76547873]
[1754063054833,4.587,3616.5,3616.1,0.4774541]
[1754063055137,4.587,3616.5,3616.4,5.76518084]
[1754063055332,4.587,3616.5,3616.4,6.22538084]
[1754063055633,4.587,3616.5,3616.4,5.76518084]
[1754063055934,4.587,3616.5,3616.4,6.22538084]
[1754063056336,0.001,3616.6,3616.5,5.76510438]
[1754063056538,4.588,3616.6,3616.5,5.76510438]
[1754063056835,4.588,3616.6,3616.5,6.22530438]
[1754063057404,4.588,3616.6,3616.5,5.76510438]
[1754063058021,4.588,3616.6,3616.5,6.22530438]
[1754063058547,4.588,3616.6,3616.5,6.43696509]
[1754063058931,4.588,3616.6,3616.5,5.97676509]
[1754063059438,4.588,3616.6,3616.1,2.76538066]
[1754063059439,5.0583,3616.6,3615.8,0.1384]
[1754063059641,0.4703,3616.5,3616.1,3.0]
[1754063059933,0.1384,3616.2,3616.1,2.76541024]
[1754063060138,5.1947,3616.2,3616.1,2.76541024]
[1754063060934,4.7244,3616.2,3616.1,2.76541024]
[1754063061639,5.1947,3616.2,3615.8,2.76556502]
[1754063061808,0.4703,3616.1,3616.0,2.76544095]
[1754063062009,0.4703,3616.1,3616.0,5.76544095]
[1754063062207,0.6087,3616.1,3616.0,3.0]
[1754063063116,0.6087,3616.1,3616.0,5.76548672]
[1754063063528,0.6087,3616.1,3616.0,3.0]
[1754063063850,0.6087,3616.1,3616.0,5.76548672]
[1754063064028,0.6087,3616.1,3615.5,0.1384]
[1754063064208,0.4703,3616.0,3615.5,3.0]
[1754063064412,0.1384,3615.6,3615.5,2.76586709]
[1754063064615,5.1927,3615.6,3615.5,5.76586709]
[1754063065550,5.1927,3615.6,3615.5,3.0]
[1754063066054,3.69769267,3615.6,3615.4,0.002]
[1754063066240,12.82547266,3615.5,3615.4,0.002]
[1754063066960,3.55936917,3615.5,3615.4,0.002]
[1754063067161,7.95756917,3615.5,3615.4,0.002]
[1754063067361,8.28076917,3615.5,3615.4,0.002]
[1754063068260,2.90426917,3615.5,3615.4,0.002]
[1754063068564,8.28076917,3615.5,3615.4,0.002]
[1754063070823,8.83076917,3615.5,3615.4,0.002]
[1754063073868,7.95756917,3615.5,3615.4,0.002]
[1754063074961,5.1917,3615.5,3615.4,0.002]
[1754063075128,5.1897,3615.5,3615.4,0.002]
[1754063075324,0.1384,3615.5,3615.4,0.4622]
[1754063075537,4.7194,3615.5,3615.4,0.9266]
[1754063075864,5.1897,3615.5,3615.4,0.002]
[1754063076827,6.644,3616.1,3615.5,3.0]
[1754063077030,4.58,3616.0,3615.9,2.7655632]
[1754063077432,4.58,3616.0,3615.9,3.2299632]
[1754063077676,4.58,3616.0,3615.9,2.7655632]
[1754063077970,4.58,3616.0,3615.9,3.2257632]
[1754063078141,6.644,3616.1,3616.0,2.76548672]
[1754063078469,11.224,3616.1,3616.0,3.69008672]
[1754063079376,11.224,3616.1,3616.0,3.22568672]
[1754063080069,11.224,3616.1,3615.6,2.76578372]
[1754063080240,11.224,3616.1,3615.9,3.0]
[1754063080442,11.224,3616.1,3615.7,3.0]
[1754063080443,11.224,3616.1,3616.0,2.76548672]
[1754063080964,11.224,3616.1,3616.0,3.22568672]
[1754063081966,6.644,3616.1,3616.0,3.22568672]
[1754063082173,11.222,3616.1,3616.0,6.22568672]
[1754063082376,11.222,3616.1,3616.0,6.69008672]
[1754063082759,4.578,3616.1,3616.0,6.69008672]
[1754063083643,0.001,3616.6,3616.5,5.76510438]
[1754063083846,4.578,3616.6,3616.5,5.76510438]
[1754063084370,4.578,3616.6,3616.5,6.68970438]
[1754063084537,0.001,3616.6,3616.5,6.68970438]
[1754063084733,4.578,3616.6,3615.0,0.002]
[1754063084970,4.578,3616.6,3615.5,0.4602]
[1754063085177,4.578,3616.6,3616.3,2.76519938]
[1754063085380,0.4615,3616.5,3615.9,6.23235311]
[1754063085583,0.4615,3616.5,3615.7,2.76565219]
[1754063085584,2.76518346,3616.4,3615.7,2.76565219]
[1754063085885,2.76518346,3616.4,3615.6,3.0]
[1754063085886,7.8027628,3616.3,3615.5,6.23262985]
[1754063086033,5.0375,3616.3,3615.5,3.23262985]
[1754063086237,5.0375,3616.3,3615.5,0.4668]
[1754063086468,3.22683377,3616.2,3615.7,3.0]
[1754063086734,0.4615,3616.2,3615.5,3.4668]